Cogmind - Beta 13 @@@ ROGUE MODE // 2024.04.12 @ 01:05:29 Player: A Moose Result: Destroyed by G-47 Trooper with Particle Gun Performance ------------- Evolutions (1) 500 Regions Visited (5) 1000 Robots Destroyed (37) 185 Value Destroyed (1204) 1204 Prototype IDs (3) 60 Alien Tech Used (0) 0 Bonus (200) 200 TOTAL SCORE: 3149 Bonus ------- Entered Garrisons 200 Cogmind --------- Core Integrity 0/400 Matter 271/300 Energy 100/100 System Corruption 0% Temperature Hot (249) Movement Core (50) Location -9/Garrison Parts ------- > --- POWER (1) -------- (None) > --- PROPULSION (2) --- (None) > --- UTILITY (3) ------ Improved Signal Interpreter Improved Targeting Computer Improved Targeting Computer > --- WEAPON (3) ------- Heavy Flail > --- INVENTORY (5) ---- Heavy Ion Engine Armored Wheel High-capacity Matter Pod (200) Sensor Array Peak State ------------ > --- POWER ------------ Heavy Ion Engine > --- PROPULSION ------- Armored Wheel Armored Wheel > --- UTILITY ---------- Weight Redist. System Improved Signal Interpreter Hardened Medium Armor Plating > --- WEAPON ----------- Advanced Beam Cannon Flak Cannon Heavy Flail > --- INVENTORY -------- Heavy Ion Engine Armored Wheel Sensor Array Medium Armor Plating Advanced Beam Cannon [Rating: 25] Favorites ----------- Power Heavy Ion Engine Engine Heavy Ion Engine Power Core Light Nuclear Core Propulsion Armored Wheel Treads Light Treads Wheel Armored Wheel Utility Improved Signal Interpreter Device Sensor Array Storage Small Storage Unit Processor Improved Signal Interpreter Protection Hardened Medium Armor Plating Weapon Heavy Flail Energy Gun EM Pulse Gun Energy Cannon Advanced Beam Cannon Ballistic Gun Assault Rifle Ballistic Cannon Flak Cannon Impact Weapon Heavy Flail Build | -11 -10 -10 -9 -9 -9 ------- Run | Yrd Mat Min Mat Sto Gar Slots Evolved 2 | . . . 2 . . Power . | . . . . . . Propulsion . | . . . . . . Utility 1 | . . . 1 . . Weapon 1 | . . . 1 . . Parts Attached 56 | 6 8 7 4 23 8 Power 10 | 1 1 1 . 6 1 Engine 9 | 1 . 1 . 6 1 Core 1 | . 1 . . . . Reactor . | . . . . . . Propulsion 6 | 2 2 . . 2 . Treads 2 | 2 . . . . . Leg . | . . . . . . Wheel 4 | . 2 . . 2 . Hover . | . . . . . . Flight . | . . . . . . Utility 26 | 1 3 4 3 11 4 Device 8 | . 1 2 1 3 1 Storage 1 | 1 . . . . . Processor 4 | . 1 1 . . 2 Hackware . | . . . . . . Protection 13 | . 1 1 2 8 1 Artifact . | . . . . . . Weapon 14 | 2 2 2 1 4 3 Energy Gun 4 | 1 1 . . 1 1 Energy Cannon 3 | . . . . 2 1 Ballistic Gun 1 | 1 . . . . . Ballistic Cannon 4 | . 1 1 1 . 1 Launcher . | . . . . . . Special Weapon . | . . . . . . Impact Weapon 2 | . . 1 . 1 . Slashing Weapon . | . . . . . . Piercing Weapon . | . . . . . . Special Melee Weapon . | . . . . . . Unidentified Prototypes 3 | . . . . 3 . Parts Lost 12 | . 1 . 1 2 8 Power 3 | . . . 1 1 1 Propulsion 2 | . . . . . 2 Utility 1 | . . . . . 1 Weapon 6 | . 1 . . 1 4 Highest Loss Streak 6 | . 1 . 1 1 6 To Critical Strikes . | . . . . . . Average Slot Usage (%) 95 | . 98 98 92 94 94 Engine 6 | . 4 7 3 6 10 Core 3 | . 9 6 . . . Treads 2 | . 9 . . . . Wheel 21 | . 18 28 22 22 20 Device 9 | . 9 7 18 12 6 Processor 13 | . 12 14 11 11 22 Protection 6 | . 3 6 3 9 3 Energy Gun 4 | . 12 . . . 9 Energy Cannon 5 | . . . . 9 10 Ballistic Gun 4 | . 14 5 . . . Ballistic Cannon 9 | . 1 18 22 13 . Impact Weapon 6 | . . 3 11 8 11 Naked Turns . | . . . . . . Heaviest Build 32 | 12 15 26 23 32 21 Greatest Support 40 | 40 40 24 24 30 30 Greatest Overweight (x) 1 | . . 1 . 1 1 Average Overweight (x) . | . . . . . . Largest Inventory Capacity 8 | 8 8 5 5 5 5 Average Capacity 5 | 6 5 5 5 5 5 Most Carried 5 | 4 5 5 5 5 5 Average Carried 4 | 1 4 4 3 4 4 Final Capacity 8 | 8 5 5 5 5 5 Final Carried 5 | 2 5 5 4 5 4 Class Distribution -------------------- 91% | Mutant 5% | Skirmisher Dominant Class ---------------- Mutant | -10/Materials Mutant | -10/Mines Assassin | -9/Materials Mutant | -9/Storage Mutant | -9/Garrison Resources | -11 -10 -10 -9 -9 -9 ----------- Run | Yrd Mat Min Mat Sto Gar Matter Collected 1212 | 217 225 131 41 511 87 Remotely . | . . . . . . Salvage Created 1215 | . 257 107 38 554 259 Parts 67 | . 17 2 2 30 16 Haulers Intercepted 2 | . . . . 2 . Recyclers Shooed 3 | . . . . 3 . Parts Field Recycled . | . . . . . . Retrieved Matter . | . . . . . . Parts Self-Destructed . | . . . . . . Prevented . | . . . . . . Kills | -11 -10 -10 -9 -9 -9 ------- Run | Yrd Mat Min Mat Sto Gar Combat Hostiles Destroyed 30 | . 4 3 1 14 8 Melee 3 | . . . . 1 2 Guns 7 | . 4 1 . . 2 Cannons 17 | . . 2 1 10 4 Classes Destroyed 6 | . 3 . 1 1 1 Hauler 2 | . . . . 2 . Operator 2 | . 1 . . 1 . Watcher 3 | . 3 . . . . Swarmer 3 | . . . . . 3 Grunt 20 | . 4 3 . 9 4 Sentry 7 | . . . 1 5 1 Best Kill Streak 4 | . 2 3 1 3 4 Combat Bots Only 4 | . 1 2 1 3 4 Max Kills in Single Turn 1 | . 1 1 1 1 1 Gunslinging . | . . . . . . Exploded . | . . . . . . Melee 1 | . . . . 1 1 Uniques/NPCs Destroyed . | . . . . . . Combat | -11 -10 -10 -9 -9 -9 -------- Run | Yrd Mat Min Mat Sto Gar Hostile Shots Fired 273 | . 29 18 2 105 119 Missed 60 | . 6 4 . 31 19 Damage Taken 2542 | . 319 189 121 983 930 Core 575 | . 139 32 26 157 221 Absorbed by Shields . | . . . . . . Core Remaining (%) 65 | 100 . 31 . . . Volleys Fired 99 | . 31 13 1 38 16 Largest 3 | . 2 2 2 3 2 Hottest 180 | . 60 55 79 180 124 Shots Fired 186 | . 61 26 2 68 29 Gun 85 | . 59 13 . . 13 Cannon 101 | . 2 13 2 68 16 Launcher . | . . . . . . Special . | . . . . . . Kinetic 105 | . 32 26 2 43 2 Thermal 60 | . 8 . . 25 27 Explosive . | . . . . . . Electromagnetic 21 | . 21 . . . . Robot Hit Streak 9 | . 9 7 3 9 6 Robot Miss Streak 8 | . 4 3 1 8 5 Penetration Max . | . . . . . . Secondary Targets . | . . . . . . Shots Hit Robots 150 | . 39 17 2 73 19 Core Hits 68 | . 12 6 2 40 8 Critical Kills 2 | . . . . 1 1 Critical Parts Destroyed 4 | . . . . 3 1 Critical Strikes 6 | . . . . 4 2 Smash 6 | . . . . 4 2 Melee Attacks 53 | . . . . 31 22 Impact 53 | . . . . 31 22 Slashing . | . . . . . . Piercing . | . . . . . . Sneak Attacks 3 | . . . . 3 . Combat Hostiles . | . . . . . . Follow-up Attacks . | . . . . . . Damage Inflicted 3155 | . 547 256 45 1856 451 Guns 758 | . 518 102 . . 138 Cannons 1423 | . . 154 45 1034 190 Explosions 29 | . 29 . . . . Melee 945 | . . . . 822 123 Ramming . | . . . . . . Kinetic 1342 | . 289 256 45 726 26 Thermal 708 | . 98 . . 308 302 Explosive . | . . . . . . Electromagnetic 160 | . 160 . . . . Impact 945 | . . . . 822 123 Slashing . | . . . . . . Piercing . | . . . . . . Highest Corruption 1 | . 1 1 . . . Average Corruption 1 | . 1 1 . . . Corruption Purged . | . . . . . . Corruption Blocked . | . . . . . . Effects 6 | . 2 4 . . . Matter Fused 2 | . 1 1 . . . Heat Flow Errors 3 | . 1 2 . . . Data Loss (minor) 1 | . . 1 . . . Overload Shots . | . . . . . . Overflow Damage 350 | . . . . 316 34 Projectiles . | . . . . . . Explosions . | . . . . . . Melee 350 | . . . . 316 34 Knockbacks 24 | . . 3 . 20 1 Impact 2 | . . . . 2 . Kinetic 22 | . . 3 . 18 1 Secondary . | . . . . . . Self-Inflicted Damage 32 | . 32 . . . . Shots 1 | . 1 . . . . Rammed . | . . . . . . Targets Rammed . | . . . . . . Kicked . | . . . . . . Crushed . | . . . . . . Highest Temperature 465 | . 309 255 18 414 465 Average Temperature 137 | . 81 83 15 179 189 Received Heat Transfer 972 | . 177 105 9 447 234 Effects 9 | . 2 . . 4 3 Shutdowns 3 | . . . . 2 1 Interference 4 | . 2 . . 2 . Matter Decay 1 | . . . . . 1 Damage (minor) 1 | . . . . . 1 Siege Activations . | . . . . . . Robots Corrupted . | . . . . . . Combat Hostiles . | . . . . . . Parts Fried 4 | . . . . 3 1 Impact Corruptions 10 | . . . . 9 1 Robots Melted . | . . . . . . Combat Hostiles . | . . . . . . Parts Melted 3 | . 1 . . 1 1 Heat Transferred 1347 | . 200 . . 555 592 Parts Sabotaged . | . . . . . . Parts Stolen . | . . . . . . Parts Stripped . | . . . . . . Power Chain Reactions 1 | . 1 . . . . Alert | -11 -10 -10 -9 -9 -9 ------- Run | Yrd Mat Min Mat Sto Gar Peak Influence 396 | . 159 80 66 336 396 Initial 207 | . . . 31 27 207 Average 141 | . 75 68 37 197 266 Maximum Alert Level 1 | . . . . 1 1 Low Security (%) 66 | 100 100 100 100 49 . Level 1 33 | . . . . 50 100 Level 2 . | . . . . . . Level 3 . | . . . . . . Level 4 . | . . . . . . Level 5 . | . . . . . . High Security . | . . . . . . Max Security . | . . . . . . Squads Dispatched 7 | . 3 1 . 3 . Investigation 4 | . 2 1 . 1 . Extermination . | . . . . . . Reinforcement 3 | . 1 . . 2 . Assault . | . . . . . . Garrison . | . . . . . . Intercept . | . . . . . . Searches Triggered . | . . . . . . Construction Impeded . | . . . . . . Haulers Reinforced . | . . . . . . Active Scanning Responses . | . . . . . . Cargo Convoy Interrupts . | . . . . . . Stealth | -11 -10 -10 -9 -9 -9 --------- Run | Yrd Mat Min Mat Sto Gar Distress Signals 3 | . 2 . . 1 . Communications Jammed . | . . . . . . Distress Signals . | . . . . . . Times Spotted 48 | . 10 3 1 21 13 Peak Tracking Total 10 | . 3 2 . 5 10 Tactical Retreats 2 | . . . . 1 1 Traps | -11 -10 -10 -9 -9 -9 ------- Run | Yrd Mat Min Mat Sto Gar Traps Triggered 3 | . 1 . 1 1 . Indirectly . | . . . . . . Trap Hack Attempts . | . . . . . . Triggered . | . . . . . . Disarmed . | . . . . . . Reprogrammed . | . . . . . . Reused . | . . . . . . Traps Extracted . | . . . . . . Installed . | . . . . . . Triggered . | . . . . . . Machines | -11 -10 -10 -9 -9 -9 ---------- Run | Yrd Mat Min Mat Sto Gar Machines Disabled 3 | . . . . 3 . Max in Single Turn 1 | . . . . 1 . Machines Repaired . | . . . . . . Machines Dismantled . | . . . . . . Machines Sabotaged . | . . . . . . Overloaded Fab Kills . | . . . . . . Hacking | -11 -10 -10 -9 -9 -9 --------- Run | Yrd Mat Min Mat Sto Gar Machines Accessed 8 | . 2 1 2 3 . Terminals 5 | . 2 . 1 2 . Fabricators . | . . . . . . Repair Stations . | . . . . . . Recycling Units . | . . . . . . Scanalyzers 1 | . . . 1 . . Garrison Access 1 | . . . . 1 . Total Hacks 16 | . 6 1 4 5 . Successful 6 | . . 1 3 2 . Failed 10 | . 6 . 1 3 . Catastrophic 2 | . 1 . 1 . . Database Lockouts . | . . . . . . Manual 3 | . 1 . 2 . . Terminals 11 | . 6 . 2 3 . Fabricators . | . . . . . . Repair Stations . | . . . . . . Recycling Units . | . . . . . . Scanalyzers 2 | . . . 2 . . Garrison Access 2 | . . . . 2 . Terminal Hacks 3 | . . 1 1 1 . Open Door 2 | . . 1 . 1 . Terminal Index 1 | . . . 1 . . Fabricator Hacks . | . . . . . . Repair Station Hacks . | . . . . . . Recycling Unit Hacks . | . . . . . . Scanalyzer 2 | . . . 2 . . Insert Component 1 | . . . 1 . . Analyze 1 | . . . 1 . . Garrison Access Hacks 1 | . . . . 1 . Unlock Access 1 | . . . . 1 . Unauthorized Hacks . | . . . . . . Terminals . | . . . . . . Fabricators . | . . . . . . Repair Stations . | . . . . . . Recycling Units . | . . . . . . Scanalyzers . | . . . . . . Garrison Access . | . . . . . . Data Cores Recovered . | . . . . . . Used . | . . . . . . Hacking Detections 6 | . 2 . 2 2 . Full Trace Events 1 | . 1 . . . . Feedback Events 1 | . 1 . . . . Corruption 1 | . 1 . . . . Feedback Blocked . | . . . . . . Robot Schematics Acquired . | . . . . . . Robots Built . | . . . . . . Authchips . | . . . . . . Time . | . . . . . . Total Robot Build Rating . | . . . . . . Part Schematics Acquired 1 | . . . 1 . . Parts Built . | . . . . . . Authchips . | . . . . . . Time . | . . . . . . Total Part Build Rating . | . . . . . . Parts Repaired . | . . . . . . Time . | . . . . . . Parts Recycled . | . . . . . . Recycled Matter . | . . . . . . Retrieved Matter . | . . . . . . Retrieved Components . | . . . . . . Parts Scanalyzed 1 | . . . 1 . . Part Schematics Acquired 1 | . . . 1 . . Parts Damaged . | . . . . . . Bothacking | -11 -10 -10 -9 -9 -9 ------------ Run | Yrd Mat Min Mat Sto Gar Used RIF Installer . | . . . . . . Robots Hacked . | . . . . . . Non-combat . | . . . . . . Combat . | . . . . . . Robot Hacks Applied . | . . . . . . Relay Couplers Released . | . . . . . . Fabnet Peak Effective % . | . . . . . . Robots Rewired . | . . . . . . Allies Hacked . | . . . . . . Hacks Repelled . | . . . . . . Allies | -11 -10 -10 -9 -9 -9 -------- Run | Yrd Mat Min Mat Sto Gar Total Allies 3 | . . 3 . . . Largest Group 3 | . . 3 3 . . Highest-Rated Group 40 | . . 40 40 . . Highest-Rated Ally 16 | . . 16 16 . . Total Orders . | . . . . . . Ally Attacks . | . . . . . . Total Damage . | . . . . . . Kills . | . . . . . . Allies Corrupted . | . . . . . . Allies Melted . | . . . . . . Intel | -11 -10 -10 -9 -9 -9 ------- Run | Yrd Mat Min Mat Sto Gar Robot Analysis Total . | . . . . . . Derelict Logs Recovered 1 | . . 1 . . . Drone Launches . | . . . . . . Drone Recoveries . | . . . . . . Exploration | -11 -10 -10 -9 -9 -9 ------------- Run | Yrd Mat Min Mat Sto Gar Turns Passed 1689 | 73 400 270 87 597 262 Spaces Moved 1028 | 43 230 223 70 298 164 Core 8 | 8 . . . . . Treads 92 | 35 57 . . . . Legs . | . . . . . . Wheels 928 | . 173 223 70 298 164 Hover . | . . . . . . Flight . | . . . . . . Fastest Speed 50 | 50 90 90 90 90 90 Average Speed 96 | 139 107 90 90 91 90 Slowest Speed 160 | 160 160 105 90 105 105 Overloaded Moves . | . . . . . . Propulsion Burnouts . | . . . . . . Robots Hopped . | . . . . . . Cave-ins Triggered . | . . . . . . Exploration Rate (%) 26 | 5 34 38 10 45 29 Regions Visited 5 Branch Regions 2 Pre-discovered Areas . | . . . . . . Known Exits Taken 4 | . 1 1 1 1 . Unknown Exits Taken 1 | 1 . . . . . Scrap Searched 3 | . . 3 . . . Spaces Dug 4 | . . . . . 4 Terrain Destroyed 6 | . 2 . . . 4 Melee 4 | . . . . . 4 Projectile . | . . . . . . AOE 2 | . 2 . . . . Terrain Rammed . | . . . . . . Walls Destroyed . | . . . . . . Machines Disabled . | . . . . . . Actions | -11 -10 -10 -9 -9 -9 --------- Run | Yrd Mat Min Mat Sto Gar Total 1453 | 56 321 264 91 505 216 Wait 163 | . 39 9 15 100 . Move 1023 | 42 229 222 69 297 164 Hop . | . . . . . . Pick Up 35 | 8 8 6 1 8 4 Fast Attach 6 | . 3 1 . 2 . Attach 18 | 6 2 1 3 3 3 Detach 1 | . . . 1 . . Swap 32 | . 3 5 1 18 5 Drop 23 | . 6 7 . 8 2 Fire 99 | . 31 13 1 38 16 Melee 53 | . . . . 31 22 Ram . | . . . . . . Kick . | . . . . . . Crush . | . . . . . . Escape Stasis . | . . . . . . Rewire . | . . . . . . Trap . | . . . . . . Miscellaneous . | . . . . . . Route ------- -11/Scrapyard -10/Materials -10/Mines (discovered 2 exits: *Mat x2) -9/Materials -9/Storage -9/Garrison History --------- Turn | Location | Event 9 | -11/Scrapyard | Discovered new exit (range 16) 74 | -11/Scrapyard | Entered Materials 302 | -10/Materials | Build established: Mutant 368 | -10/Materials | Core integrity fell below 50% 399 | -10/Materials | Discovered new exit (range 12) 414 | -10/Materials | Identified exit to Mines 474 | -10/Materials | Entered Mines 476 | -10/Mines | Met a Derelict bent on vengeance 495 | -10/Mines | Discovered new exit (range 14) 531 | -10/Mines | Identified exit to Materials 537 | -10/Mines | Learned 2 Materials zone layouts 545 | -10/Mines | Met a Derelict shopkeep closing up shop 707 | -10/Mines | Assisted by bots powering up and referring to "LRC-V3" 726 | -10/Mines | Discovered exit to Materials (range 8) 744 | -10/Mines | Entered Materials 744 | -9/Materials | Accompanied by 3 allies 744 | -9/Materials | Evolved 2 slots: Utility x1, Weapon x1 805 | -9/Materials | Lost 3 allies 825 | -9/Materials | Discovered new exit (range 4) 827 | -9/Materials | Identified exit to Storage 831 | -9/Materials | Entered Storage 1427 | -9/Storage | Identified exit to Garrison 1428 | -9/Storage | Entered Garrison 1474 | -9/Garrison | Triggered checkpoint 1512 | -9/Garrison | Triggered checkpoint 1521 | -9/Garrison | Core integrity fell below 50% 1680 | -9/Garrison | Core integrity fell below 20% 1690 | -9/Garrison | Destroyed by G-47 Trooper with Particle Gun Last Messages --------------- Acquired 25 matter. Acquired 1 matter. Acquired 4 matter. Critical hit (Burn: +37). Adv. Beam Cannon destroyed. S-10 Pest destroyed. G-34 Mercenary destroyed. Power failure, Hvy. Ion Engine shutdown. Overheating: Imp. Medium Laser damaged (-1). Imp. Medium Laser destroyed. Heat Sink melted. Y-45 Defender destroyed. Arm. Wheel destroyed. G-34 Mercenary suffers critical hit (Smash). G-34 Mercenary destroyed. Arm. Wheel destroyed. Overheating: Matter decay (-39). Hvy. Ion Engine destroyed. Adv. Beam Cannon destroyed. Critical hit (Burn: +37). Map ----- +----------------------------------------------------+ | ?????????????????????????????????????????????????? | | ?????????????????????????????????????????????????? | | ?????????????????????????????????????????????????? | | ?????????????????????????????????????????????????? | | ?????????????????????????????????????????????????? | | ?????????????????????????????????????????????????? | | ?????????????????????????????????????????????????? | | ?????????????????????????????????????????????????? | | ?????????????????????????????????????????????????? | | ????????????? ?????????????????????????????????? | | ???????""""?# #????????????????????????????????? | | ????? ? #????????????????????????????????? | | ?? ? ? #????????????????????????????????? | | ? ? #????????????????????????????????? | | ?# ?# ## #????????????????????????????????? | | ?# ## ## #????????????????????????????????? | | ?" "????????????????????????????????? | | ?" "????????????????????????????????? | | ?" "????????????????????????????????? | | ?" "????????????????????????????????? | | ?# ## ## #????????????????????????????????? | | ## ## ## ############?????????????????????? | | #?????????????????????? | | ^ *[g=#?????????????????????? | | ## ^ %[=s#?????????????????????? | | ??# ## #############%@s#?????????????????????? | | ??# ## #???????????#*% #?????????????????????? | | ??# ###"###???????????# #?????????????????????? | | ??# #?# #?????????????#^^^#?????????????????????? | | ??# ### #?????????????# #?????????????????????? | | ??# "## #?????????????#s #?????????????????????? | | ### ### #?????????????# #?????????????????????? | | " #?????????????+ #?????????????????????? | | #####?????????????+ #?????????????????????? | | ######?????????????????# #?????????????????????? | | ???????????????????????# #?????????????????????? | | ???????????????????????# #?????????????????????? | | ???????????????????????# #?????????????????????? | | ???????????????????????? #?????????????????????? | | ???????????????????????? #?????????????????????? | | ???????????????????????? #?????????????????????? | | ???????????????????????? ??????????????????????? | | ?????????????????????????????????????????????????? | | ?????????????????????????????????????????????????? | | ?????????????????????????????????????????????????? | | ?????????????????????????????????????????????????? | | ?????????????????????????????????????????????????? | | ?????????????????????????????????????????????????? | | ?????????????????????????????????????????????????? | | ?????????????????????????????????????????????????? | +----------------------------------------------------+ Best States ------------- Heat Dissipation 28 Energy Generation 14 Energy Capacity 280 Matter Stores 300 Matter Capacity 300 Sight Range 16 Robot Scan Range 14 Terrain Scan Range 16 Terrain Scan Density 10 Additional Mass Support 6 Armor Coverage 450 Evasion (%) 42 Targeting Accuracy 12 Recoil Reduction 2 Item Schematics ----------------- Arm. Wheel | -9/Materials | Scanalyzed Robot Schematics ------------------ None Fabricated ------------ Nothing Alien Tech Used ----------------- None Achievements -------------- None Challenges ------------ None Game ------ Seed FissionTacticalModule Manual? 0 Play Time 00:36:30 Cumulative 27.7 hours Start 2024.04.12 @ 00:27:01 End 2024.04.12 @ 01:05:29 Sessions 1 Manual Loads 0 Difficulty Rogue Special Mode None Game No. 36 Rogue 27 Adventurer 9 Explorer 0 Win Type - Total 0 Types 0/0/0/0/0/0/0/0/0 Lore% 22 Gallery% 35 Achievement% 29 Wizard Run 0 Options --------- Layout 1 ASCII 0 Keyboard 0 Movement Numpad Keybinds 0 Fullscreen 1 Font 24/Smallcaps Map View 50x35 Zoom Use 0% Tactical HUD 0 Map Filters NONE Filters NONE Steam 1 RUN: fc7dead8-6d4f-4e55-b0da-615ee586ff4e